[Event "FIDE Chesscom Grand Swiss 2019"]
[Site "Douglas-Isle of Man"]
[Date "2019.10.21"]
[Round "11.7"]
[White "Nabaty, Tamir"]
[Black "Narayanan.S.L"]
[Result "0-1"]
[ECO "A48"]
[WhiteElo "2658"]
[BlackElo "2611"]
[Annotator "RC"]
[PlyCount "80"]
[EventDate "2019.10.10"]
[EventType "swiss"]
[EventCountry "GBR"]
[SourceTitle "playchess.com"]
[Source "ChessBase"]
[SourceQuality "1"]
[TimeControl "40/6000+30:20/3000+30:900+30"]

1. Nf3 {[%emt 0:01:08]} Nf6 {[%emt 0:00:07]} 2. b3 {[%emt 0:00:31]} g6 {[%emt 0:01:09]} 3. Bb2 {[%emt 0:00:13]} Bg7 {[%emt 0:00:05]} 4. d4 {[%emt 0:00:33]} O-O {[%emt 0:00:13]} 5. Nbd2 {[%emt 0:00:22]} d5 {[%emt 0:00:06]} 6. c4 {[%emt 0:00:21]} dxc4 {[%emt 0:00:17]} 7. Nxc4 {[%emt 0:00:31]} c5 {[%emt 0:00:09]} 8. dxc5 {[%emt 0:01:04]} Na6 {[%emt 0:00:05]} 9. c6 {[%emt 0:01:53]} b5 {[%emt 0:00:11]} 10. Ncd2 {[%emt 0:03:40]} Nb4 {[%emt 0:17:44]} 11. e3 {[%emt 0:22:52]} Bf5 {[%emt 0:02:42]} 12. Nd4 {[%emt 0:01:35]} Nfd5 {[%emt 0:19:39]} 13. Rc1 {[%emt 0:15:27]} Nf4 {[%emt 0:08:16]} 14. exf4 {[%emt 0:08:13]} Bxd4 {[%emt 0:00:09]} 15. c7 {[%emt 0:01:59]} Qd5 {[%emt 0:03:09]} 16. Bxd4 {[%emt 0:00:42]} Qxd4 {[%emt 0:00:11]} 17. Bxb5 {[%emt 0:16:42]} Bd3 {[%emt 0:04:09]} 18. Bc4 {[%emt 0:05:08]} Nxa2 {[%emt 0:04:24]} 19. Bxd3 {[%emt 0:07:53]} Nxc1 {[%emt 0:00:13]} 20. Qxc1 {[%emt 0:00:05]} Qxd3 {[%emt 0:00:07]} 21. h4 {[%emt 0:00:04]} Rac8 {[%emt 0:07:42]} 22. Rh3 {[%emt 0:00:11]} Qf5 {[%emt 0:08:34]} 23. Rc3 {[%emt 0:01:28]} Qxf4 {[%emt 0:01:26]} 24. g3 {[%emt 0:00:41]} Qf5 {[%emt 0:01:40]} 25. Rc4 {[%emt 0:01:40]} f6 {[%emt 0:03:12]} 26. Ne4 {[%emt 0:03:43]} Qd5 {[%emt 0:01:23]} 27. Ke2 {[%emt 0:05:02]} Rf7 {[%emt 0:03:31]} 28. Qe3 {[%emt 0:02:03]} Qe6 {[%emt 0:05:43]} 29. h5 {[%emt 0:05:59]} gxh5 {[%emt 0:02:57]} 30. Qh6 {[%emt 0:02:36]} Qe5 {[%emt 0:00:26]} 31. Qd2 {[%emt 0:00:31]} Qe6 {[%emt 0:03:55]} 32. Kf1 {[%emt 0:00:15]} Kg7 {[%emt 0:00:41]} 33. Qd4 {[%emt 0:00:26]} Qb6 {[%emt 0:04:18]} 34. Qd7 {[%emt 0:00:29]} Qxb3 {[%emt 0:01:08]} 35. Rc1 {[%emt 0:00:58]} Rxc7 {[%emt 0:00:56]} 36. Qxc7 {[%emt 0:00:08]} Qd3+ {[%emt 0:00:02]} 37. Kg1 {[%emt 0:00:07]} Qxe4 {[%emt 0:00:04]} 38. Qb8 {[%emt 0:01:13]} h4 {[%emt 0:00:19]} 39. gxh4 {[%emt 0:00:23]} Kh6 {[%emt 0:01:12]} 40. Rc8 {[%emt 0:00:48]} Rg7+ {[%emt 0:00:00]} 0-1

[Event "FIDE Chesscom Grand Swiss 2019"]
[Site "Douglas-Isle of Man"]
[Date "2019.10.21"]
[Round "11.9"]
[White "Erdos, Viktor"]
[Black "Movsesian, Sergei"]
[Result "1/2-1/2"]
[ECO "D38"]
[WhiteElo "2604"]
[BlackElo "2654"]
[Annotator "RC"]
[PlyCount "44"]
[EventDate "2019.10.10"]
[EventType "swiss"]
[EventCountry "GBR"]
[SourceTitle "playchess.com"]
[Source "ChessBase"]
[SourceQuality "1"]
[TimeControl "40/6000+30:20/3000+30:900+30"]

1. d4 {[%emt 0:00:00]} Nf6 {[%emt 0:00:00]} 2. c4 {[%emt 0:00:00]} e6 {[%emt 0:00:04]} 3. Nf3 {[%emt 0:00:07]} d5 {[%emt 0:01:13]} 4. Nc3 {[%emt 0:00:46]} Bb4 {[%emt 0:00:48]} 5. Qb3 {[%emt 0:01:44]} c5 {[%emt 0:04:00]} 6. dxc5 {[%emt 0:01:53]} Nc6 {[%emt 0:02:02]} 7. Bg5 {[%emt 0:01:20]} Qa5 {[%emt 0:02:19]} 8. Bxf6 {[%emt 0:00:20]} dxc4 {[%emt 0:00:20]} 9. Qxc4 {[%emt 0:00:07]} gxf6 {[%emt 0:00:12]} 10. Rc1 {[%emt 0:01:18]} Qxc5 {[%emt 0:01:05]} 11. Qh4 {[%emt 0:05:25]} Ke7 {[%emt 0:02:33]} 12. g3 {[%emt 0:04:19]} Bxc3+ {[%emt 0:01:18]} 13. bxc3 {[%emt 0:00:19]} b6 {[%emt 0:00:20]} 14. Bg2 {[%emt 0:00:09]} Bb7 {[%emt 0:00:24]} 15. O-O {[%emt 0:00:10]} Rac8 {[%emt 0:03:40]} 16. Rfd1 {[%emt 0:06:12]} h5 {[%emt 0:04:02]} 17. Ne1 {[%emt 0:07:34]} Qg5 {[%emt 0:02:48]} 18. Qa4 {[%emt 0:00:30]} Qa5 {[%emt 0:00:55]} 19. Qf4 {[%emt 0:01:35]} Qe5 {[%emt 0:02:21]} 20. Qa4 {[%emt 0:00:59]} Qa5 {[%emt 0:00:33]} 21. Qf4 {[%emt 0:03:41]} Qe5 {[%emt 0:01:29]} 22. Qa4 {[%emt 0:03:14]} Qa5 {[%emt 0:00:46]} 1/2-1/2

[Event "FIDE Chesscom Grand Swiss 2019"]
[Site "Douglas-Isle of Man"]
[Date "2019.10.21"]
[Round "11.15"]
[White "Bluebaum, Matthias"]
[Black "Harika, Dronavalli"]
[Result "1/2-1/2"]
[ECO "D45"]
[WhiteElo "2643"]
[BlackElo "2495"]
[Annotator "RC"]
[PlyCount "64"]
[EventDate "2019.10.10"]
[EventType "swiss"]
[EventCountry "GBR"]
[SourceTitle "playchess.com"]
[Source "ChessBase"]
[SourceQuality "1"]
[TimeControl "40/6000+30:20/3000+30:900+30"]

1. d4 {[%emt 0:00:00]} d5 {[%emt 0:00:51]} 2. c4 {[%emt 0:00:00]} e6 {[%emt 0:00:13]} 3. Nc3 {[%emt 0:00:00]} c6 {[%emt 0:00:05]} 4. e3 {[%emt 0:00:00]} Nf6 {[%emt 0:00:10]} 5. Nf3 {[%emt 0:00:00]} Nbd7 {[%emt 0:00:17]} 6. Be2 {[%emt 0:00:38]} Bd6 {[%emt 0:01:07]} 7. O-O {[%emt 0:00:06]} O-O {[%emt 0:00:18]} 8. a4 {[%emt 0:00:04]} a5 {[%emt 0:00:22]} 9. Qc2 {[%emt 0:00:04]} b6 {[%emt 0:00:34]} 10. e4 {[%emt 0:00:39]} dxe4 {[%emt 0:00:44]} 11. Nxe4 {[%emt 0:00:24]} Nxe4 {[%emt 0:00:50]} 12. Qxe4 {[%emt 0:00:04]} Bb7 {[%emt 0:00:16]} 13. Rd1 {[%emt 0:00:07]} Qe7 {[%emt 0:02:59]} 14. Bf4 {[%emt 0:01:32]} Bxf4 {[%emt 0:02:51]} 15. Qxf4 {[%emt 0:00:07]} Rfd8 {[%emt 0:03:08]} 16. c5 {[%emt 0:04:53]} Rdc8 {[%emt 0:15:18]} 17. Ne5 {[%emt 0:08:53]} Nxe5 {[%emt 0:00:51]} 18. dxe5 {[%emt 0:14:46]} Ba6 {[%emt 0:00:40]} 19. Bxa6 {[%emt 0:01:51]} Rxa6 {[%emt 0:00:07]} 20. Rd6 {[%emt 0:05:30]} bxc5 {[%emt 0:00:38]} 21. Rad1 {[%emt 0:02:27]} Rb6 {[%emt 0:04:42]} 22. Qc1 {[%emt 0:19:23]} h6 {[%emt 0:06:28]} 23. Qxc5 {[%emt 0:07:32]} Rxb2 {[%emt 0:01:15]} 24. Qxa5 {[%emt 0:00:24]} Qh4 {[%emt 0:15:03]} 25. g3 {[%emt 0:06:03]} Qe4 {[%emt 0:01:36]} 26. Qc3 {[%emt 0:07:03]} Rc2 {[%emt 0:04:43]} 27. Qd3 {[%emt 0:10:18]} Qxd3 {[%emt 0:00:50]} 28. R1xd3 {[%emt 0:00:21]} Ra2 {[%emt 0:01:40]} 29. R3d4 {[%emt 0:04:12]} Ra8 {[%emt 0:00:36]} 30. Rxc6 {[%emt 0:01:06]} R2xa4 {[%emt 0:00:10]} 31. Rd7 {[%emt 0:00:32]} R4a7 {[%emt 0:00:13]} 32. Rc8+ {[%emt 0:01:19]} Rxc8 {[%emt 0:00:41]} 1/2-1/2

[Event "FIDE Chesscom Grand Swiss 2019"]
[Site "Douglas-Isle of Man"]
[Date "2019.10.21"]
[Round "11.16"]
[White "Jumabayev, Rinat"]
[Black "Kashlinskaya, Alina"]
[Result "1-0"]
[ECO "A22"]
[WhiteElo "2630"]
[BlackElo "2481"]
[Annotator "RC"]
[PlyCount "113"]
[EventDate "2019.10.10"]
[EventType "swiss"]
[EventCountry "GBR"]
[SourceTitle "playchess.com"]
[Source "ChessBase"]
[SourceQuality "1"]
[TimeControl "40/6000+30:20/3000+30:900+30"]

1. c4 {[%emt 0:00:00]} e5 {[%emt 0:00:00]} 2. e3 {[%emt 0:00:00]} Nf6 {[%emt 0:01:10]} 3. Nc3 {[%emt 0:00:00]} Bb4 {[%emt 0:02:13]} 4. Nge2 {[%emt 0:00:00]} O-O {[%emt 0:05:42]} 5. Nd5 {[%emt 0:06:12]} Nxd5 {[%emt 0:11:26]} 6. cxd5 {[%emt 0:00:05]} d6 {[%emt 0:00:12]} 7. a3 {[%emt 0:03:03]} Ba5 {[%emt 0:00:25]} 8. Nc3 {[%emt 0:00:53]} Nd7 {[%emt 0:01:29]} 9. b4 {[%emt 0:04:38]} Bb6 {[%emt 0:00:05]} 10. Na4 {[%emt 0:01:00]} f5 {[%emt 0:09:03]} 11. Be2 {[%emt 0:02:25]} Nf6 {[%emt 0:01:29]} 12. Qb3 {[%emt 0:00:09]} Bd7 {[%emt 0:06:42]} 13. Nxb6 {[%emt 0:02:24]} axb6 {[%emt 0:00:06]} 14. O-O {[%emt 0:00:11]} Qe7 {[%emt 0:04:26]} 15. Bb2 {[%emt 0:07:12]} Qf7 {[%emt 0:00:52]} 16. f4 {[%emt 0:00:55]} Rae8 {[%emt 0:09:14]} 17. fxe5 {[%emt 0:05:15]} dxe5 {[%emt 0:01:45]} 18. Rac1 {[%emt 0:06:56]} c6 {[%emt 0:03:10]} 19. b5 {[%emt 0:02:05]} Kh8 {[%emt 0:05:25]} 20. a4 {[%emt 0:07:02]} Qxd5 {[%emt 0:04:09]} 21. Qxd5 {[%emt 0:10:56]} Nxd5 {[%emt 0:01:34]} 22. Bc4 {[%emt 0:02:03]} Nc7 {[%emt 0:08:08]} 23. Bb3 {[%emt 0:09:47]} e4 {[%emt 0:02:27]} 24. g4 {[%emt 0:13:29]} fxg4 {[%emt 0:01:44]} 25. Be5 {[%emt 0:03:40]} Be6 {[%emt 0:07:52]} 26. Rxf8+ {[%emt 0:04:55]} Rxf8 {[%emt 0:00:04]} 27. Bd1 {[%emt 0:01:38]} Nd5 {[%emt 0:03:31]} 28. bxc6 {[%emt 0:00:23]} bxc6 {[%emt 0:00:03]} 29. Rxc6 {[%emt 0:00:06]} Re8 {[%emt 0:00:39]} 30. Bd4 {[%emt 0:02:36]} h5 {[%emt 0:00:31]} 31. Be2 {[%emt 0:02:32]} Bf7 {[%emt 0:07:39]} 32. Bc4 {[%emt 0:06:51]} Re7 {[%emt 0:00:24]} 33. Rd6 {[%emt 0:05:43]} Nf6 {[%emt 0:02:27]} 34. Bb5 {[%emt 0:00:15]} Nd5 {[%emt 0:03:16]} 35. Bxb6 {[%emt 0:01:14]} Nxb6 {[%emt 0:03:12]} 36. Rxb6 {[%emt 0:00:02]} Ra7 {[%emt 0:00:57]} 37. Bc6 {[%emt 0:00:15]} Bg6 {[%emt 0:00:43]} 38. Rb7 {[%emt 0:01:32]} Ra5 {[%emt 0:01:49]} 39. Bb5 {[%emt 0:00:28]} Kh7 {[%emt 0:00:05]} 40. Rb6 {[%emt 0:00:33]} Ra8 {[%emt 0:00:34]} 41. Bc6 {[%emt 0:05:46]} Rd8 {[%emt 0:05:33]} 42. Rb2 {[%emt 0:00:43]} Rc8 {[%emt 0:02:29]} 43. Rc2 {[%emt 0:01:28]} Rb8 {[%emt 0:02:18]} 44. Kg2 {[%emt 0:04:54]} Rb1 {[%emt 0:02:34]} 45. Rc4 {[%emt 0:06:11]} Rb2 {[%emt 0:12:10]} 46. Rd4 {[%emt 0:00:12]} Rc2 {[%emt 0:04:01]} 47. Bd7 {[%emt 0:07:31]} Ra2 {[%emt 0:00:10]} 48. Kg3 {[%emt 0:02:24]} Kh6 {[%emt 0:02:24]} 49. Kf4 {[%emt 0:03:32]} Ra1 {[%emt 0:00:19]} 50. Bb5 {[%emt 0:02:07]} Rg1 {[%emt 0:04:32]} 51. a5 {[%emt 0:08:34]} h4 {[%emt 0:00:13]} 52. Rd6 {[%emt 0:02:21]} Kh7 {[%emt 0:03:52]} 53. Bd7 {[%emt 0:01:30]} g3 {[%emt 0:00:58]} 54. hxg3 {[%emt 0:02:03]} hxg3 {[%emt 0:00:38]} 55. a6 {[%emt 0:01:13]} Rf1+ {[%emt 0:10:21]} 56. Kxg3 {[%emt 0:00:08]} Bf5 {[%emt 0:00:05]} 57. a7 {[%emt 0:00:30]} 1-0

[Event "FIDE Chesscom Grand Swiss 2019"]
[Site "Douglas-Isle of Man"]
[Date "2019.10.21"]
[Round "11.17"]
[White "Alekseev, Evgeny"]
[Black "Baron, Tal"]
[Result "1/2-1/2"]
[ECO "A36"]
[WhiteElo "2629"]
[BlackElo "2531"]
[Annotator "RC"]
[PlyCount "56"]
[EventDate "2019.10.10"]
[EventType "swiss"]
[EventCountry "GBR"]
[SourceTitle "playchess.com"]
[Source "ChessBase"]
[SourceQuality "1"]
[TimeControl "40/6000+30:20/3000+30:900+30"]

1. c4 {[%emt 0:00:00]} c5 {[%emt 0:00:51]} 2. g3 {[%emt 0:03:10]} g6 {[%emt 0:01:08]} 3. Bg2 {[%emt 0:00:15]} Bg7 {[%emt 0:00:02]} 4. Nc3 {[%emt 0:00:28]} Nc6 {[%emt 0:00:04]} 5. d3 {[%emt 0:01:17]} d6 {[%emt 0:05:16]} 6. e3 {[%emt 0:03:23]} e6 {[%emt 0:00:58]} 7. Nge2 {[%emt 0:04:25]} Nge7 {[%emt 0:00:04]} 8. O-O {[%emt 0:01:40]} O-O {[%emt 0:00:04]} 9. a3 {[%emt 0:02:21]} a6 {[%emt 0:01:14]} 10. Rb1 {[%emt 0:00:32]} Rb8 {[%emt 0:01:27]} 11. b4 {[%emt 0:00:19]} cxb4 {[%emt 0:00:07]} 12. axb4 {[%emt 0:00:04]} b5 {[%emt 0:00:20]} 13. cxb5 {[%emt 0:03:37]} axb5 {[%emt 0:00:02]} 14. d4 {[%emt 0:02:01]} d5 {[%emt 0:00:18]} 15. Nf4 {[%emt 0:02:39]} Nf5 {[%emt 0:00:12]} 16. Nd3 {[%emt 0:00:18]} Nd6 {[%emt 0:00:09]} 17. Qb3 {[%emt 0:01:01]} Re8 {[%emt 0:03:17]} 18. Nc5 {[%emt 0:09:02]} Re7 {[%emt 0:02:48]} 19. Ra1 {[%emt 0:01:33]} Bd7 {[%emt 0:09:49]} 20. Ra6 {[%emt 0:08:23]} Be8 {[%emt 0:02:44]} 21. Bb2 {[%emt 0:00:20]} Ra8 {[%emt 0:01:05]} 22. Rfa1 {[%emt 0:02:18]} Rea7 {[%emt 0:02:47]} 23. Rxa7 {[%emt 0:00:24]} Rxa7 {[%emt 0:00:07]} 24. Rxa7 {[%emt 0:00:04]} Nxa7 {[%emt 0:00:06]} 25. Bc1 {[%emt 0:01:12]} Qb6 {[%emt 0:01:39]} 26. Bb2 {[%emt 0:01:03]} Qd8 {[%emt 0:00:31]} 27. Bc1 {[%emt 0:00:05]} Qb6 {[%emt 0:00:04]} 28. Bb2 {[%emt 0:00:03]} Qd8 {[%emt 0:00:59]} 1/2-1/2

[Event "FIDE Chesscom Grand Swiss 2019"]
[Site "Douglas-Isle of Man"]
[Date "2019.10.21"]
[Round "11.20"]
[White "Demchenko, Anton"]
[Black "Vovk, Andriy"]
[Result "1-0"]
[ECO "B31"]
[WhiteElo "2655"]
[BlackElo "2618"]
[Annotator "RC"]
[PlyCount "63"]
[EventDate "2019.10.10"]
[EventType "swiss"]
[EventCountry "GBR"]
[SourceTitle "playchess.com"]
[Source "ChessBase"]
[SourceQuality "1"]
[TimeControl "40/6000+30:20/3000+30:900+30"]

1. e4 {[%emt 0:00:12]} c5 {[%emt 0:00:00]} 2. Nf3 {[%emt 0:00:00]} Nc6 {[%emt 0:00:29]} 3. Bb5 {[%emt 0:00:00]} g6 {[%emt 0:00:23]} 4. O-O {[%emt 0:00:16]} Bg7 {[%emt 0:00:13]} 5. Re1 {[%emt 0:00:27]} e5 {[%emt 0:01:22]} 6. Bxc6 {[%emt 0:00:31]} bxc6 {[%emt 0:06:30]} 7. c3 {[%emt 0:01:34]} d6 {[%emt 0:00:42]} 8. d4 {[%emt 0:00:44]} cxd4 {[%emt 0:01:14]} 9. cxd4 {[%emt 0:00:07]} exd4 {[%emt 0:01:26]} 10. Nxd4 {[%emt 0:10:31]} Bb7 {[%emt 0:05:02]} 11. Nc3 {[%emt 0:04:47]} Nf6 {[%emt 0:03:04]} 12. e5 {[%emt 0:28:26]} dxe5 {[%emt 0:01:01]} 13. Rxe5+ {[%emt 0:00:04]} Kf8 {[%emt 0:00:06]} 14. Bg5 {[%emt 0:06:04]} h6 {[%emt 0:08:55]} 15. Bh4 {[%emt 0:01:24]} Kg8 {[%emt 0:05:04]} 16. Nf3 {[%emt 0:06:37]} g5 {[%emt 0:16:00]} 17. Bg3 {[%emt 0:01:40]} Nd5 {[%emt 0:03:28]} 18. Nxd5 {[%emt 0:05:58]} cxd5 {[%emt 0:00:48]} 19. Re1 {[%emt 0:12:28]} d4 {[%emt 0:04:16]} 20. Be5 {[%emt 0:00:26]} d3 {[%emt 0:09:16]} 21. Re3 {[%emt 0:06:30]} Ba6 {[%emt 0:03:14]} 22. Qa4 {[%emt 0:03:11]} Qb6 {[%emt 0:01:57]} 23. Rd1 {[%emt 0:00:08]} Rc8 {[%emt 0:10:58]} 24. h4 {[%emt 0:00:57]} Qc6 {[%emt 0:02:32]} 25. Qg4 {[%emt 0:05:53]} h5 {[%emt 0:06:50]} 26. Qf5 {[%emt 0:00:20]} g4 {[%emt 0:00:30]} 27. Ng5 {[%emt 0:03:58]} Qb7 {[%emt 0:12:57]} 28. Bxg7 {[%emt 0:02:57]} Kxg7 {[%emt 0:00:04]} 29. Re6 {[%emt 0:01:50]} Bc4 {[%emt 0:01:29]} 30. Qf6+ {[%emt 0:01:56]} Kg8 {[%emt 0:00:04]} 31. Nxf7 {[%emt 0:01:49]} Bxe6 {[%emt 0:04:39]} 32. Qxh8+ {[%emt 0:00:16]} 1-0

[Event "FIDE Chesscom Grand Swiss 2019"]
[Site "Douglas-Isle of Man"]
[Date "2019.10.21"]
[Round "11.23"]
[White "Piorun, Kacper"]
[Black "Keymer, Vincent"]
[Result "1-0"]
[ECO "B42"]
[WhiteElo "2643"]
[BlackElo "2506"]
[Annotator "RC"]
[PlyCount "89"]
[EventDate "2019.10.10"]
[EventType "swiss"]
[EventCountry "GBR"]
[SourceTitle "playchess.com"]
[Source "ChessBase"]
[SourceQuality "1"]
[TimeControl "40/6000+30:20/3000+30:900+30"]

1. e4 {[%emt 0:00:00]} c5 {[%emt 0:00:00]} 2. Nf3 {[%emt 0:00:00]} e6 {[%emt 0:00:00]} 3. d4 {[%emt 0:00:42]} cxd4 {[%emt 0:00:00]} 4. Nxd4 {[%emt 0:00:04]} a6 {[%emt 0:00:00]} 5. Bd3 {[%emt 0:00:22]} Bc5 {[%emt 0:00:00]} 6. Nb3 {[%emt 0:00:04]} Ba7 {[%emt 0:00:00]} 7. O-O {[%emt 0:00:42]} Ne7 {[%emt 0:00:09]} 8. Qe2 {[%emt 0:01:00]} Nbc6 {[%emt 0:02:44]} 9. Be3 {[%emt 0:01:42]} O-O {[%emt 0:06:01]} 10. Rd1 {[%emt 0:05:07]} d6 {[%emt 0:06:56]} 11. c4 {[%emt 0:00:27]} e5 {[%emt 0:06:21]} 12. Bxa7 {[%emt 0:00:20]} Rxa7 {[%emt 0:00:23]} 13. Qe3 {[%emt 0:07:44]} Ra8 {[%emt 0:14:54]} 14. Nc3 {[%emt 0:00:18]} Be6 {[%emt 0:00:18]} 15. Bf1 {[%emt 0:03:09]} Qb8 {[%emt 0:22:15]} 16. Rd2 {[%emt 0:15:33]} a5 {[%emt 0:10:48]} 17. Rad1 {[%emt 0:08:00]} a4 {[%emt 0:00:37]} 18. Na1 {[%emt 0:01:00]} Nd4 {[%emt 0:09:01]} 19. Nc2 {[%emt 0:01:17]} Nec6 {[%emt 0:01:13]} 20. Nb5 {[%emt 0:01:26]} Nxb5 {[%emt 0:03:10]} 21. cxb5 {[%emt 0:00:13]} Na5 {[%emt 0:01:18]} 22. Qa3 {[%emt 0:02:54]} Qc7 {[%emt 0:01:14]} 23. Nb4 {[%emt 0:08:45]} Rfc8 {[%emt 0:06:41]} 24. Rc2 {[%emt 0:05:47]} Qd8 {[%emt 0:01:28]} 25. Rxc8 {[%emt 0:00:39]} Rxc8 {[%emt 0:04:12]} 26. Qxa4 {[%emt 0:02:08]} Nc4 {[%emt 0:00:18]} 27. Nd3 {[%emt 0:18:09]} f6 {[%emt 0:05:37]} 28. Qb4 {[%emt 0:01:21]} Kf7 {[%emt 0:05:46]} 29. b3 {[%emt 0:03:52]} Nb6 {[%emt 0:00:03]} 30. f4 {[%emt 0:02:05]} Bg4 {[%emt 0:00:16]} 31. Rd2 {[%emt 0:00:37]} Qc7 {[%emt 0:00:57]} 32. f5 {[%emt 0:01:30]} Ke7 {[%emt 0:00:30]} 33. a4 {[%emt 0:02:42]} Bh5 {[%emt 0:00:49]} 34. Nb2 {[%emt 0:05:22]} Bf7 {[%emt 0:01:14]} 35. a5 {[%emt 0:00:55]} Nd7 {[%emt 0:00:02]} 36. Na4 {[%emt 0:01:40]} Nc5 {[%emt 0:00:54]} 37. Nb6 {[%emt 0:01:17]} Rd8 {[%emt 0:00:27]} 38. Nd5+ {[%emt 0:05:31]} Bxd5 {[%emt 0:00:01]} 39. Rxd5 {[%emt 0:00:05]} g6 {[%emt 0:01:06]} 40. Qc4 {[%emt 0:02:37]} Rc8 {[%emt 0:00:48]} 41. Rd1 {[%emt 0:51:47]} Qd7 {[%emt 0:02:55]} 42. Qd5 {[%emt 0:00:00]} gxf5 {[%emt 0:01:06]} 43. exf5 {[%emt 0:00:00]} Qxf5 {[%emt 0:01:18]} 44. Bc4 {[%emt 0:00:00]} Qe6 {[%emt 0:01:11]} 45. Qd2 {[%emt 0:00:00]} 1-0

[Event "FIDE Chesscom Grand Swiss 2019"]
[Site "Douglas-Isle of Man"]
[Date "2019.10.21"]
[Round "11.29"]
[White "Erenberg, Ariel"]
[Black "Gonzalez Vidal, Yuri"]
[Result "1-0"]
[ECO "A13"]
[WhiteElo "2463"]
[BlackElo "2552"]
[Annotator "ChessBase"]
[PlyCount "85"]
[EventDate "2019.10.10"]
[EventType "swiss"]
[EventCountry "GBR"]
[SourceTitle "playchess.com"]
[Source "ChessBase"]
[SourceQuality "1"]
[TimeControl "40/6000+30:20/3000+30:900+30"]

1. Nf3 {[%emt 0:00:01]} Nf6 {[%emt 0:00:00]} 2. c4 {[%emt 0:01:14]} e6 {[%emt 0:00:22]} 3. g3 {[%emt 0:00:15]} d5 {[%emt 0:00:18]} 4. Bg2 {[%emt 0:00:11]} dxc4 {[%emt 0:01:54]} 5. Qa4+ {[%emt 0:00:15]} Bd7 {[%emt 0:02:56]} 6. Qxc4 {[%emt 0:00:10]} c5 {[%emt 0:00:14]} 7. Ne5 {[%emt 0:00:16]} Qc8 {[%emt 0:00:30]} 8. Qd3 {[%emt 0:00:11]} Nc6 {[%emt 0:00:50]} 9. Nxd7 {[%emt 0:00:06]} Nxd7 {[%emt 0:00:07]} 10. Nc3 {[%emt 0:03:23]} a6 {[%emt 0:04:30]} 11. O-O {[%emt 0:02:04]} Be7 {[%emt 0:00:19]} 12. b3 {[%emt 0:00:47]} O-O {[%emt 0:00:48]} 13. Bb2 {[%emt 0:00:23]} Qc7 {[%emt 0:03:56]} 14. Rac1 {[%emt 0:05:16]} Rfd8 {[%emt 0:00:40]} 15. Rfd1 {[%emt 0:15:45]} Rac8 {[%emt 0:01:30]} 16. Qb1 {[%emt 0:14:55]} Qb8 {[%emt 0:05:03]} 17. e3 {[%emt 0:08:44]} Qa7 {[%emt 0:05:41]} 18. Ne4 {[%emt 0:13:01]} f5 {[%emt 0:07:13]} 19. Nc3 {[%emt 0:00:41]} Bf6 {[%emt 0:01:38]} 20. Ne2 {[%emt 0:03:34]} Bxb2 {[%emt 0:17:53]} 21. Qxb2 {[%emt 0:00:03]} Nf8 {[%emt 0:00:56]} 22. Qa3 {[%emt 0:21:32]} b6 {[%emt 0:19:51]} 23. d4 {[%emt 0:00:28]} Ne7 {[%emt 0:03:06]} 24. dxc5 {[%emt 0:01:05]} Rxd1+ {[%emt 0:04:55]} 25. Rxd1 {[%emt 0:00:01]} Rxc5 {[%emt 0:00:07]} 26. Nd4 {[%emt 0:03:48]} Rc7 {[%emt 0:07:47]} 27. b4 {[%emt 0:01:44]} b5 {[%emt 0:02:06]} 28. Qa5 {[%emt 0:02:25]} e5 {[%emt 0:06:07]} 29. Nb3 {[%emt 0:00:21]} e4 {[%emt 0:00:25]} 30. Nc5 {[%emt 0:01:21]} Nc6 {[%emt 0:00:16]} 31. Qa3 {[%emt 0:01:11]} a5 {[%emt 0:05:43]} 32. Qb3+ {[%emt 0:00:42]} Kh8 {[%emt 0:00:45]} 33. a3 {[%emt 0:00:57]} axb4 {[%emt 0:00:39]} 34. axb4 {[%emt 0:00:03]} h6 {[%emt 0:01:30]} 35. Rd5 {[%emt 0:06:33]} Qa1+ {[%emt 0:01:36]} 36. Bf1 {[%emt 0:00:21]} Qf6 {[%emt 0:00:48]} 37. Bxb5 {[%emt 0:00:55]} Ne5 {[%emt 0:00:10]} 38. Be2 {[%emt 0:00:46]} Ra7 {[%emt 0:00:46]} 39. Rd1 {[%emt 0:01:07]} g5 {[%emt 0:02:43]} 40. b5 {[%emt 0:01:03]} Nfd7 {[%emt 0:00:31]} 41. Nxd7 {[%emt 0:51:29]} Nxd7 {[%emt 0:05:26]} 42. Qd5 {[%emt 0:00:00]} g4 {[%emt 0:01:18]} 43. Bc4 {[%emt 0:00:00]} 1-0